fUST/lending_fUST_20251202
["ID","MTS","AMOUNT","RATE_DAILY","PERIOD"]
[395361706,1764659828368,-2000.0,0.00033973,120]
[395361707,1764659828402,-1000.0,0.00033973,120]
[395361708,1764659828436,-1100.0,0.00033973,120]
[395361709,1764659828471,-246.29689438,0.0003399,60]
[395361710,1764659828505,-21079.0,0.00034,60]
[395361711,1764659828540,-1997.33042411,0.00034,120]
[395361712,1764659828577,-250.0,0.00034,120]
[395361713,1764659828614,-162.37,0.0003404,60]
[395361714,1764659828652,-218.39,0.00034081,60]
[395361715,1764659828689,-162.37,0.0003414,60]
[395361716,1764659828725,-218.39133944,0.00034181,60]
[395361717,1764659828760,-192.2248517,0.00034192,30]
[395361718,1764659828795,-192.2248517,0.00034192,30]
[395361719,1764659828831,-192.2248517,0.00034192,30]
[395361720,1764659828867,-192.2248517,0.00034192,30]
[395361721,1764659828904,-192.2248517,0.00034192,30]
[395361722,1764659828942,-162.41849581,0.0003424,60]
[395361723,1764659828978,-1000.0,0.00034247,120]
[395361724,1764659829014,-1100.0,0.00034247,120]
[395361725,1764659829049,-11256.0,0.0003427,60]
[395361726,1764659829084,-200.0,0.000344,120]
[395361727,1764659829119,-25208.13336519,0.000345,30]
[395361728,1764659829154,-2000.0,0.00034521,120]
[395361729,1764659829189,-1000.0,0.00034521,120]
[395361730,1764659829224,-1100.0,0.00034521,120]
[395361731,1764659829260,-200.0,0.00034528,120]
[395361732,1764659829296,-3000.0,0.00034762,14]
[395361733,1764659829332,-1000.0,0.00034795,120]
[395361734,1764659829369,-1100.0,0.00034795,120]
[395361735,1764659829406,-400.0,0.000349,120]
[395361736,1764659829444,-1800.40642634,0.00035,120]
[395361737,1764659829480,-100284.59883795,0.00035,120]
[395361738,1764659829516,-5108.0,0.00035,90]
[395361739,1764659829551,-16114.75638925,0.00035,120]
[395361740,1764659829586,-2846.6064,0.00035,120]
[395361741,1764659829783,-5000.0,0.00035,90]
[395361742,1764659829823,-212523.49875249,0.00035,120]
[395361743,1764659829857,-152.0,0.00035,120]
[395361744,1764659829893,-10133.37400914,0.00035,14]
[395361745,1764659829927,-150.0,0.00035,69]
[395361746,1764659829961,-598.0,0.00035,120]
[395361747,1764659829994,-200.0,0.00035,120]
[395361748,1764659830028,-6855.0,0.00035,60]
[395361749,1764659830061,-692.295,0.00035,120]
[395361750,1764659830093,-2890.0,0.00035,120]
[395361751,1764659830125,-540.7,0.00035,30]
[395361752,1764659830159,-3058.84316454,0.00035,30]
[395361753,1764659830193,-2000.0,0.00035068,120]
[395361754,1764659830226,-1000.0,0.00035068,120]
[395361755,1764659830259,-1100.0,0.00035068,120]
[395361756,1764659830294,-5181.86,0.00035068,120]
[395361757,1764659830328,-1744.269997,0.0003516,120]
[395361758,1764659830362,-200.18747256,0.0003517,120]
[395361759,1764659830396,-309.0,0.00035246,30]
[395361760,1764659830429,-652.77231139,0.00035255,120]
[395361761,1764659830462,-27170.9379617,0.000353,50]
[395361762,1764659830495,-1000.0,0.00035342,120]
[395361763,1764659830529,-1100.0,0.00035342,120]
[395361764,1764659830561,-176.0,0.00035342,77]
[395361765,1764659830595,-370111.88628121,0.0003544,30]
[395361766,1764659833211,-765.0,0.00023051,15]
[395361767,1764659833268,-7087.61,0.00032877,10]
[395361768,1764659833304,-165.0,0.00033931,30]
[395361769,1764659833341,-2991982.39,0.0003544,30]
[395361770,1764659835632,179.77,0.00021918,120]
[395361771,1764659835974,-4820.23,0.00021918,120]
[395361772,1764659836039,-171.105,0.00033931,30]
[395361773,1764659836074,-177.435885,0.00033931,30]
[395361774,1764659836108,-184.00101274,0.00033931,30]
[395361775,1764659836143,-190.80905022,0.00033931,30]
[395361776,1764659836180,-2994456.41905204,0.0003544,30]
[395361777,1764659838868,-733.47,0.00023051,15]
[395361778,1764659838924,-188.5910532,0.00033931,30]
[395361779,1764659838960,-527591.53406675,0.0003544,30]
[395361780,1764659838993,-500.0,0.00035523,90]
[395361781,1764659839026,-3000.0,0.00035584,14]
[395361782,1764659839061,-152.0,0.000356,120]
[395361783,1764659839096,-2000.0,0.00035616,120]
[395361784,1764659839129,-1000.0,0.00035616,120]
[395361785,1764659839162,-1100.0,0.00035616,120]
[395361786,1764659839196,-1000.0,0.00035616,120]
[395361787,1764659839229,-500.0,0.00035616,120]
[395361788,1764659839262,-200.0,0.00035627,120]
[395361789,1764659839297,-1000.0,0.00035643,120]
[395361790,1764659839334,-1000.0,0.00035671,120]
[395361791,1764659839369,-1000.0,0.00035698,120]
[395361792,1764659839405,-1000.0,0.00035726,120]
[395361793,1764659839440,-1000.0,0.00035753,120]
[395361794,1764659839474,-1000.0,0.0003578,120]
[395361795,1764659839510,-902.02,0.000358,120]
[395361796,1764659839546,-1000.0,0.00035808,120]
[395361797,1764659839578,-1000.0,0.00035835,120]
[395361798,1764659839610,-1000.0,0.00035863,120]
[395361799,1764659839643,-1271.8780169,0.00035878,61]
[395361800,1764659839675,-500.0,0.0003589,60]
[395361801,1764659839708,-501.87731908,0.0003589,60]
[395361802,1764659839742,-1000.0,0.0003589,120]
[395361803,1764659839773,-1076.14831476,0.000359,120]
[395361804,1764659839806,-1000.0,0.00035917,120]
[395361805,1764659839839,-1000.0,0.00035945,120]
[395361806,1764659839874,-1000.0,0.00035972,120]
[395361807,1764659839911,-1398242.0,0.00036,10]
[395361808,1764659839948,-600.0,0.00036,120]
[395361809,1764659839982,-500.0,0.00036,30]
[395361810,1764659840027,-500.0,0.00036,30]
[395361811,1764659840060,-511.12,0.00036,60]
[395361812,1764659840093,-3686.3,0.00036,14]
[395361813,1764659840126,-1000.0,0.00036,120]
[395361814,1764659840158,-1000.0,0.00036027,120]
[395361815,1764659840191,-200.0,0.0003604,120]
[395361816,1764659840222,-1000.0,0.00036054,120]
[395361817,1764659840253,-1000.0,0.00036082,120]
[395361818,1764659840285,-915.08841262,0.000361,30]
[395361819,1764659840318,-200.0,0.00036103,120]
[395361820,1764659840484,-1000.0,0.00036109,120]
[395361821,1764659840520,-500.0,0.00036117,30]
[395361822,1764659840556,-500.0,0.00036117,31]
[395361823,1764659840589,-500.0,0.00036117,30]
[395361824,1764659840622,-163.78393959,0.00036117,30]
[395361825,1764659840653,-500.0,0.00036117,30]
[395361826,1764659840686,-500.0,0.00036117,30]
[395361827,1764659840719,-501.23935045,0.00036117,31]
[395361828,1764659840750,-502.11086503,0.00036117,31]
[395361829,1764659840782,-500.0,0.00036117,31]
[395361830,1764659840816,-250.0,0.00036117,30]
[395361831,1764659840849,-207.4,0.00036117,30]
[395361832,1764659840880,-12511.32420436,0.00036117,30]
[395361833,1764659840916,-251.60619674,0.00036117,31]
[395361834,1764659840948,-215.0738,0.00036117,31]
[395361835,1764659840980,-194.91727392,0.00036117,30]
[395361836,1764659841010,-500.0,0.00036117,30]
[395361837,1764659841043,-500.0,0.00036117,31]
[395361838,1764659841074,-4031.856,0.00036117,30]
[395361839,1764659841108,-4181.034672,0.00036117,31]
[395361840,1764659841173,-500.0,0.00036132,30]
[395361841,1764659841208,-1000.0,0.00036136,120]
[395361842,1764659841241,-2000.0,0.00036164,120]
[395361843,1764659841273,-1000.0,0.00036164,120]
[395361844,1764659841308,-5181.86,0.00036164,120]
[395361845,1764659841363,-2021.5668265,0.0003618,90]
[395361846,1764659841403,-1000.0,0.00036191,120]
[395361847,1764659841441,-200.0,0.00036193,120]
[395361848,1764659841477,-500.0,0.0003621,30]
[395361849,1764659841513,-500.0,0.0003621,30]
[395361850,1764659841550,-151.0,0.0003621,30]
[395361851,1764659841586,-201.4212941,0.0003621,30]
[395361852,1764659841624,-500.0,0.0003621,30]
[395361853,1764659841662,-500.0,0.0003621,30]
[395361854,1764659841699,-250.0,0.0003621,30]
[395361855,1764659841737,-200.0,0.0003621,30]
[395361856,1764659841774,-20000.0,0.0003621,30]
[395361857,1764659841811,-151.0,0.0003621,30]
[395361858,1764659841850,-250.0,0.0003621,30]
[395361859,1764659841889,-3000.0,0.0003621,30]
[395361860,1764659841926,-500.0,0.0003621,30]
[395361861,1764659841962,-3111.0,0.0003621,30]
[395361862,1764659841997,-227.761222,0.0003621,30]
[395361863,1764659842033,-865.79310595,0.0003621,30]
[395361864,1764659842069,-160.08560967,0.0003621,30]
[395361865,1764659842104,-3888.0,0.0003621,30]
[395361866,1764659842139,-1000.0,0.00036219,120]
[395361867,1764659842180,-200.0,0.00036235,120]
[395361868,1764659842218,-200.0,0.00036236,120]
[395361869,1764659842255,-162.36738904,0.00036239,60]
[395361870,1764659842293,-679.73106882,0.00036246,120]
[395361871,1764659842329,-152.0,0.000363,120]
[395361872,1764659842366,-4863.699196,0.00036301,31]
[395361873,1764659842405,-4863.699196,0.00036301,31]
[395361874,1764659842442,-4863.699196,0.00036301,31]
[395361875,1764659842481,-4863.699196,0.00036301,31]
[395361876,1764659842520,-4863.699196,0.00036301,31]
[395361877,1764659842557,-4863.699196,0.00036301,31]
[395361878,1764659842594,-4863.699196,0.00036301,31]
[395361879,1764659842629,-4863.699196,0.00036301,31]
[395361880,1764659842663,-4863.699196,0.00036301,31]
[395361881,1764659842698,-4863.699196,0.00036301,31]
[395361882,1764659842732,-4863.699196,0.00036301,31]
[395361883,1764659842768,-4863.699196,0.00036301,31]
[395361884,1764659842805,-4863.699196,0.00036301,31]
[395361885,1764659842840,-4863.699196,0.00036301,31]
[395361886,1764659842877,-4863.699196,0.00036301,31]
[395361887,1764659842911,-4863.699196,0.00036301,31]
[395361888,1764659842944,-4863.699196,0.00036301,31]
[395361889,1764659842982,-4863.699196,0.00036301,31]
[395361890,1764659843018,-4863.699196,0.00036301,31]
[395361891,1764659843053,-4863.69918637,0.00036301,31]
[395361892,1764659843089,-3000.0,0.00036406,14]
[395361893,1764659843124,-698.53,0.00036438,30]
[395361894,1764659843159,-499.24362779,0.000365,120]
[395361895,1764659843197,-21994.54126329,0.0003666,30]
[395361896,1764659843238,-200.0,0.00036672,120]
[395361897,1764659843275,-500.0,0.0003668,30]
[395361898,1764659843313,-2000.0,0.00036712,120]
[395361899,1764659843352,-830997.74119707,0.00036789,60]
[395361900,1764659858920,80.85137013,0.00021866,56]
[395361901,1764659862611,-4919.14862987,0.00021866,56]
[395361902,1764659862651,-702.15383,0.00023051,15]
[395361903,1764659862702,-5906.34,0.00032877,10]
[395361904,1764659862764,-129656.14538651,0.00036789,60]
[395361905,1764659862795,-2000.0,0.000369,120]
[395361906,1764659862831,-152.0,0.000369,120]
[395361907,1764659862864,-238.0,0.00037,30]
[395361908,1764659862896,-60000.0,0.00037,30]
[395361909,1764659862928,-500.0,0.00037,30]
[395361910,1764659862958,-500.0,0.00037228,30]
[395361911,1764659862988,-3000.0,0.00037228,14]
[395361912,1764659863020,-687.95165752,0.00037255,120]
[395361913,1764659863049,-2000.0,0.0003726,120]
[395361914,1764659863080,-5181.86,0.0003726,120]
[395361915,1764659863110,-698.53,0.00037342,30]
[395361916,1764659863142,-200.0,0.00037365,120]
[395361917,1764659863172,-1004.0,0.0003737,120]
[395361918,1764659863204,-403.74,0.00037382,60]
[395361919,1764659863234,-188.00600589,0.0003748,30]
[395361920,1764659863267,-403.74,0.00037482,60]
[395361921,1764659863307,-500.0,0.000375,120]
[395361922,1764659863349,-152.0,0.000375,120]
[395361923,1764659863384,-200.0,0.00037566,120]
[395361924,1764659863420,-403.74,0.00037582,60]
[395361925,1764659863453,-307.0,0.00037596,30]
[395361926,1764659863489,-403.74,0.00037682,60]
[395361927,1764659863524,-500.0,0.00037776,30]
[395361928,1764659863560,-403.74,0.00037782,60]
[395361929,1764659863594,-2000.0,0.00037808,120]
[395361930,1764659863630,-247.95,0.00037881,60]
[395361931,1764659863665,-403.74,0.00037882,60]
[395361932,1764659863698,-527.1,0.00037886,60]
[395361933,1764659863735,-150.84,0.00037896,60]
[395361934,1764659863770,-247.95,0.00037981,60]
[395361935,1764659863807,-403.74,0.00037982,60]
[395361936,1764659863846,-527.1,0.00037986,60]
[395361937,1764659863885,-150.84,0.00037996,60]
[395361938,1764659863926,-1005.18514891,0.00038,30]
[395361939,1764659863961,-161.0,0.00038,120]
[395361940,1764659863995,-500.0,0.00038,30]
[395361941,1764659864031,-784.79,0.00038049,60]
[395361942,1764659864065,-3000.0,0.0003805,14]
[395361943,1764659864101,-151.36,0.00038053,60]
[395361944,1764659864139,-247.95,0.00038081,60]
[395361945,1764659864176,-403.74,0.00038082,60]
[395361946,1764659864213,-1752.54,0.00038083,60]
[395361947,1764659864251,-1770.37,0.00038083,60]
[395361948,1764659864290,-1388.33,0.00038083,60]
[395361949,1764659864328,-527.1,0.00038086,60]
[395361950,1764659864369,-150.84,0.00038096,60]
[395361951,1764659864407,-150.08,0.00038103,60]
[395361952,1764659864445,-784.79,0.00038149,60]
[395361953,1764659864482,-151.64,0.00038153,60]
[395361954,1764659864521,-247.95,0.00038181,60]
[395361955,1764659864564,-403.74,0.00038182,60]
[395361956,1764659864601,-1752.54,0.00038183,60]
[395361957,1764659864640,-1770.37,0.00038183,60]
[395361958,1764659864677,-1388.33,0.00038183,60]
[395361959,1764659864715,-527.17720163,0.00038186,60]
[395361960,1764659864752,-150.84,0.00038196,60]
[395361961,1764659864787,-2484.4365813,0.000382,120]
[395361962,1764659864825,-152.0,0.000382,120]
[395361963,1764659864864,-150.08,0.00038203,60]
[395361964,1764659864902,-698.53,0.00038246,30]
[395361965,1764659864941,-784.79,0.00038249,60]
[395361966,1764659864980,-247.95,0.00038281,60]
[395361967,1764659865018,-403.86000005,0.00038282,60]
[395361968,1764659865057,-1752.54,0.00038283,60]
[395361969,1764659865095,-1770.37,0.00038283,60]
[395361970,1764659865136,-1388.33,0.00038283,60]
[395361971,1764659865182,-150.84,0.00038296,60]
[395361972,1764659865224,-150.08,0.00038303,60]
[395361973,1764659865264,-500.0,0.00038324,30]
[395361974,1764659865306,-784.79,0.00038349,60]
[395361975,1764659865342,-2000.0,0.00038356,120]
[395361976,1764659865380,-5181.86,0.00038356,120]
[395361977,1764659865417,-500.0,0.00038356,120]
[395361978,1764659865453,-300.0,0.00038356,120]
[395361979,1764659865489,-300.0,0.00038356,120]
[395361980,1764659865711,-300.0,0.00038356,120]
[395361981,1764659865748,-300.0,0.00038356,120]
[395361982,1764659865797,-300.0,0.00038356,120]
[395361983,1764659865844,-184.48786,0.00038356,120]
[395361984,1764659865887,-247.95,0.00038381,120]
[395361985,1764659865929,-1752.54,0.00038383,120]
[395361986,1764659865969,-1770.37,0.00038383,120]
[395361987,1764659866009,-1388.33,0.00038383,120]
[395361988,1764659866048,-150.84,0.00038396,120]
[395361989,1764659866089,-150.08,0.00038403,120]
[395361990,1764659866127,-784.79,0.00038449,120]
[395361991,1764659866168,-247.95,0.00038481,120]
[395361992,1764659866209,-1752.54,0.00038483,120]
[395361993,1764659866252,-1770.37,0.00038483,120]
[395361994,1764659866295,-1388.33,0.00038483,120]
[395361995,1764659866337,-150.99,0.00038496,120]
[395361996,1764659866379,-150.08,0.00038503,120]
[395361997,1764659866420,-784.79,0.00038549,120]
[395361998,1764659866463,-247.95,0.00038581,120]
[395361999,1764659866504,-1752.64637529,0.00038583,120]
[395362000,1764659866545,-1770.57,0.00038583,120]
[395362001,1764659866585,-1388.45439472,0.00038583,120]
[395362002,1764659866626,-150.08,0.00038603,120]
[395362003,1764659866664,-173.0,0.0003863,115]
[395362004,1764659866703,-301.7915627,0.0003863,30]
[395362005,1764659866743,-785.01844635,0.00038649,120]
[395362006,1764659866783,-311.16027008,0.0003867,120]
[395362007,1764659866825,-247.95,0.00038681,120]
[395362008,1764659866865,-150.08,0.00038703,120]
[395362009,1764659866904,-247.95,0.00038781,120]
[395362010,1764659866945,-152.0,0.000388,120]
[395362011,1764659866986,-150.08,0.00038803,120]
[395362012,1764659867023,-500.0,0.00038872,30]
[395362013,1764659867060,-3000.0,0.00038872,14]
[395362014,1764659867098,-1724.86802729,0.0003888,120]
[395362015,1764659867140,-247.95,0.00038881,120]
[395362016,1764659867178,-500.0,0.00038897,20]
[395362017,1764659867217,-2000.0,0.000389,120]
[395362018,1764659867257,-150.08,0.00038903,120]
[395362019,1764659867298,-247.95,0.00038981,120]
[395362020,1764659867337,-300.0,0.00039,120]
[395362021,1764659867375,-274.82472683,0.00039,120]
[395362022,1764659867413,-6000.0,0.00039,60]
[395362023,1764659867452,-300.0,0.00039,120]
[395362024,1764659867492,-4083.7525527,0.00039,120]
[395362025,1764659867531,-500.0,0.00039,30]
[395362026,1764659867577,-150.32501169,0.00039003,120]
[395362027,1764659867617,-247.95,0.00039081,120]
[395362028,1764659867654,-698.53,0.0003915,30]
[395362029,1764659867693,-247.95,0.00039181,120]
[395362030,1764659867731,-723.13100364,0.00039255,120]
[395362031,1764659867770,-247.95,0.00039281,120]
[395362032,1764659867810,-247.95,0.00039381,120]
[395362033,1764659867856,-2392.50832186,0.0003939,120]
[395362034,1764659867896,-500.0,0.0003942,30]
[395362035,1764659867934,-5181.86,0.00039452,120]
[395362036,1764659867970,-247.95,0.00039481,120]
[395362037,1764659868004,-152.0,0.000395,120]
[395362038,1764659868039,-247.95,0.00039581,120]
[395362039,1764659868075,-248.29999995,0.00039681,120]
[395362040,1764659868110,-5366.99,0.000398,90]
[395362041,1764659868144,-500.33,0.000398,90]
[395362042,1764659868182,-307.0,0.00039946,90]
[395362043,1764659868219,-500.0,0.00039968,30]
[395362044,1764659868254,-1000.0,0.0004,120]
[395362045,1764659868289,-1134.79419074,0.0004,30]
[395362046,1764659868323,-276.89039378,0.0004,10]
[395362047,1764659868359,-1098.90129269,0.0004,120]
[395362048,1764659868395,-1000.0,0.0004,120]
[395362049,1764659868431,-1000.0,0.0004,120]
[395362050,1764659868466,-1000.0,0.0004,120]
[395362051,1764659868503,-1000.0,0.0004,120]
[395362052,1764659868539,-1000.0,0.0004,120]
[395362053,1764659868573,-1000.0,0.0004,120]
[395362054,1764659868607,-1000.0,0.0004,120]
[395362055,1764659868640,-1000.0,0.0004,120]
[395362056,1764659868674,-1000.0,0.0004,120]
[395362057,1764659868707,-433.98,0.0004,120]
[395362058,1764659868740,-400.0,0.0004,120]
[395362059,1764659868772,-1000.0,0.0004,120]
[395362060,1764659868805,-1000.0,0.0004,120]
[395362061,1764659868841,-1000.0,0.0004,120]
[395362062,1764659868875,-1000.0,0.0004,120]
[395362063,1764659868908,-1000.0,0.0004,120]
[395362064,1764659868943,-1000.0,0.0004,120]
[395362065,1764659868978,-1000.0,0.0004,120]
[395362066,1764659869013,-1000.0,0.0004,120]
[395362067,1764659869046,-1000.0,0.0004,120]
[395362068,1764659869081,-780.34,0.0004,120]
[395362069,1764659869114,-1000.0,0.0004,120]
[395362070,1764659869148,-1000.0,0.0004,120]
[395362071,1764659869184,-1000.0,0.0004,120]
[395362072,1764659869218,-1000.0,0.0004,120]
[395362073,1764659869253,-638.0,0.0004,120]
[395362074,1764659869286,-5000.0,0.0004,42]
[395362075,1764659869322,-1016.92,0.0004,120]
[395362076,1764659869358,-1001.38643677,0.0004,60]
[395362077,1764659869394,-300.0,0.0004,120]
[395362078,1764659869430,-41355.9564254,0.0004,10]
[395362079,1764659869466,-34056.90255124,0.0004,120]
[395362080,1764659869503,-3006.55055576,0.0004,30]
[395362081,1764659869540,-2843.08340494,0.0004,120]
[395362082,1764659869577,-17884.47477894,0.0004,120]
[395362083,1764659869613,-1126.10561113,0.0004,120]
[395362084,1764659869782,-1030.76,0.0004,120]
[395362085,1764659869822,-8000.0,0.0004,120]
[395362086,1764659869859,-118339.01458906,0.0004,120]
[395362087,1764659869897,-353.23530994,0.0004,120]
[395362088,1764659869933,-176.85025166,0.0004,100]
[395362089,1764659869968,-1016.74,0.0004,120]
[395362090,1764659870004,-500.0,0.0004,30]
[395362091,1764659870037,-149.9452092,0.0004,30]
[395362092,1764659870071,-18060.177874,0.0004,120]
[395362093,1764659870106,-698.53,0.00040054,30]
[395362094,1764659870139,-326.9712715,0.000401,120]
[395362095,1764659870174,-152.0,0.000401,120]
[395362096,1764659870208,-795.54330082,0.000401,120]
[395362097,1764659870244,-1744.269997,0.00040183,120]
[395362098,1764659870281,-307.0,0.00040281,90]
[395362099,1764659870322,-1721035.5573,0.0004044,30]
[395362100,1764659870358,-500.0,0.00040516,30]
[395362101,1764659870393,-3000.0,0.00040516,14]
[395362102,1764659870428,-5181.86,0.00040547,120]
[395362103,1764659870460,-152.0,0.000407,120]
[395362104,1764659870493,-2299.88,0.000408,90]
[395362105,1764659870525,-1146.18034754,0.000409,120]
[395362106,1764659870558,-698.53,0.00040958,30]
[395362107,1764659870591,-1000.0,0.00041,120]
[395362108,1764659870625,-5000.0,0.00041,40]
[395362109,1764659870657,-1000.0,0.00041,120]
[395362110,1764659870689,-300.0,0.00041,120]
[395362111,1764659870719,-1236.45158656,0.00041,120]
[395362112,1764659870749,-152.0,0.00041041,120]
[395362113,1764659870780,-152.0,0.00041041,120]
[395362114,1764659870812,-152.0,0.00041041,120]
[395362115,1764659870845,-152.0,0.00041041,120]
[395362116,1764659870877,-500.0,0.00041064,30]
[395362117,1764659870907,-1000.0,0.00041095,120]
[395362118,1764659870936,-1000.0,0.00041095,120]
[395362119,1764659870965,-1000.0,0.00041095,120]
[395362120,1764659870995,-721.73423525,0.00041096,120]
[395362121,1764659871025,-2666.04,0.00041096,120]
[395362122,1764659871055,-2463.1,0.00041096,120]
[395362123,1764659871086,-2336.988,0.00041096,120]
[395362124,1764659871117,-758.31034976,0.00041255,120]
[395362125,1764659871149,-1002.40444543,0.00041369,120]
[395362126,1764659871179,-1063.33677564,0.00041369,120]
[395362127,1764659871212,-400.0,0.000414,120]
[395362128,1764659871246,-152.0,0.000414,120]
[395362129,1764659871277,-206.0,0.000414,57]
[395362130,1764659871314,-630382.82052047,0.0004144,30]
[395362131,1764659880995,5000.0,0.000201,120]
[395362132,1764659882463,-673.455291,0.00023051,15]
[395362133,1764659882526,-4921.95,0.00032877,10]
[395362134,1764659882564,-4101.63,0.00032877,10]
[395362135,1764659882638,-660393.84747953,0.0004144,30]
[395362136,1764659882677,-500.0,0.00041611,30]
[395362137,1764659882717,-5181.86,0.00041643,120]
[395362138,1764659882755,-698.53,0.00041863,30]
[395362139,1764659882793,-400.0,0.00042,120]
[395362140,1764659882830,-300.0,0.00042,120]
[395362141,1764659882867,-260.0,0.00042,60]
[395362142,1764659882904,-152.0,0.00042,120]
[395362143,1764659882941,-500.0,0.00042159,30]
[395362144,1764659882977,-3000.0,0.0004216,60]
[395362145,1764659883020,-307.0,0.00042295,90]
[395362146,1764659883062,-1803.58053939,0.000424,120]
[395362147,1764659883103,-400.0,0.000425,120]
[395362148,1764659883142,-152.0,0.000426,120]
[395362149,1764659883183,-358.31,0.00042707,30]
[395362150,1764659883222,-5181.86,0.00042739,120]
[395362151,1764659883262,-698.53,0.00042767,30]
[395362152,1764659883302,-1000.0,0.000428,120]
[395362153,1764659883343,-1000.0,0.000428,120]
[395362154,1764659883546,-1000.0,0.000428,120]
[395362155,1764659883588,-1000.0,0.000428,120]
[395362156,1764659883627,-1000.0,0.000428,120]
[395362157,1764659883666,-1000.0,0.000428,120]
[395362158,1764659883703,-4501.72848134,0.000428,90]
[395362159,1764659883740,-400.0,0.0004288,120]
[395362160,1764659883778,-2000.0,0.000429,120]
[395362161,1764659883818,-641.40816417,0.00042999,120]
[395362162,1764659883857,-150.06,0.00043,30]
[395362163,1764659883900,-400.0,0.00043,120]
[395362164,1764659883940,-399.48,0.00043,30]
[395362165,1764659883980,-288.08065128,0.00043,120]
[395362166,1764659884019,-506.78,0.00043,120]
[395362167,1764659884056,-400.0,0.00043,120]
[395362168,1764659884094,-7102.05301561,0.00043,60]
[395362169,1764659884131,-416608.876,0.0004322,30]
[395362170,1764659884169,-793.48969589,0.00043255,120]
[395362171,1764659884207,-3000.0,0.00043256,60]
[395362172,1764659884246,-152.0,0.000433,120]
[395362173,1764659884285,-183.475,0.00043333,67]
[395362174,1764659884324,-1075647.2233,0.0004344,30]
[395362175,1764659884362,-790840.79238179,0.00043444,30]
[395362176,1764659888960,-329.7668,0.00023056,15]
[395362177,1764659889021,-3418.02,0.00032877,10]
[395362178,1764659889094,-200.0,0.00040747,120]
[395362179,1764659889132,-211.12,0.00041096,120]
[395362180,1764659889169,-2995841.0932,0.00043444,30]
[395362181,1764659892389,-471.87,0.000237,14]
[395362182,1764659892432,-471.87,0.000264,14]
[395362183,1764659892479,-471.87,0.00029,14]
[395362184,1764659892520,-471.87,0.000323,14]
[395362185,1764659892595,-471.87,0.000362,30]
[395362186,1764659892633,-166311.32241821,0.00043444,30]
[395362187,1764659892671,-400.0,0.000435,120]
[395362188,1764659892708,-41814.55501295,0.000435,120]
[395362189,1764659892745,-698.53,0.00043671,30]
[395362190,1764659892780,-1000.0,0.000438,90]
[395362191,1764659892820,-5181.86,0.00043835,120]
[395362192,1764659892855,-152.0,0.000439,120]
[395362193,1764659892886,-500.0,0.00044,120]
[395362194,1764659892920,-310.37434528,0.00044,120]
[395362195,1764659892954,-300.0,0.00044,120]
[395362196,1764659892987,-157.0,0.0004411,120]
[395362197,1764659893019,-206.0,0.0004421,65]
[395362198,1764659893052,-3000.0,0.00044352,60]
[395362199,1764659893088,-500.0,0.000445,120]
[395362200,1764659893123,-152.0,0.000445,120]
[395362201,1764659893156,-698.53,0.00044575,30]
[395362202,1764659893191,-348.14552096,0.000447,60]
[395362203,1764659893226,-1000.0,0.000448,120]
[395362204,1764659893262,-1000.0,0.000448,120]
[395362205,1764659893296,-1000.0,0.000448,120]